bitfinex-derivatives/quotes_BTCF0:USTF0_20210705
["timestamp","ask_amount","ask_price","bid_price","bid_amount"]
[1625494693596,1.41946176,33648.0,33647.0,0.9956]
[1625494693896,1.59426477,33648.0,33647.0,0.9956]
[1625494693996,1.53526477,33648.0,33647.0,0.9956]
[1625494694266,1.36046176,33648.0,33647.0,0.9956]
[1625494694356,1.41946176,33648.0,33647.0,0.9956]
[1625494694799,1.36046176,33648.0,33647.0,0.9956]
[1625494694901,1.41946176,33648.0,33647.0,0.9956]
[1625494695101,1.30146176,33648.0,33647.0,0.9956]
[1625494695357,1.41946176,33648.0,33647.0,0.9956]
[1625494696328,1.36046176,33648.0,33647.0,0.9956]
[1625494696611,1.4478503,33648.0,33647.0,0.9956]
[1625494696852,1.5068503,33648.0,33647.0,0.9956]
[1625494696952,1.62245305,33648.0,33647.0,0.9956]
[1625494697254,1.4478503,33648.0,33647.0,0.9956]
[1625494697454,1.36046176,33648.0,33647.0,0.9956]
[1625494697855,0.39816,33648.0,33647.0,0.9956]
[1625494698007,0.45716,33648.0,33647.0,0.9956]
[1625494698104,0.39816,33648.0,33647.0,0.9956]
[1625494698805,0.059,33648.0,33647.0,0.9956]
[1625494698906,0.96230176,33648.0,33647.0,0.9956]
[1625494699714,1.02130176,33648.0,33647.0,0.9956]
[1625494699912,1.08030176,33648.0,33647.0,0.9956]
[1625494700510,1.02130176,33648.0,33647.0,0.9956]
[1625494701510,1.02130176,33648.0,33647.0,1.0546]
[1625494701711,0.96230176,33648.0,33647.0,0.9956]
[1625494701812,0.96230176,33648.0,33647.0,1.0546]
[1625494703416,0.96230176,33648.0,33647.0,1.1136]
[1625494705971,0.96230176,33648.0,33647.0,2.46132867]
[1625494706171,0.72172632,33648.0,33647.0,2.46132867]
[1625494706271,0.72172632,33648.0,33647.0,2.4760506]
[1625494706723,0.48115088,33648.0,33647.0,3.99051985]
[1625494706921,0.48115088,33648.0,33647.0,4.23109529]
[1625494707472,0.48115088,33648.0,33647.0,2.71662604]
[1625494707723,0.48115088,33648.0,33647.0,4.23144105]
[1625494708325,0.48115088,33648.0,33647.0,2.71662604]
[1625494708424,0.48115088,33648.0,33647.0,2.7057307]
[1625494708725,0.48115088,33648.0,33647.0,2.70190411]
[1625494708982,0.48115088,33648.0,33647.0,2.70572661]
[1625494711231,0.48115088,33648.0,33647.0,2.71662677]
[1625494711781,0.24057544,33656.0,33647.0,2.65762677]
[1625494711883,0.24057544,33656.0,33648.0,0.01088908]
[1625494711980,0.24057544,33656.0,33648.0,0.38283908]
[1625494712080,0.24057544,33656.0,33648.0,0.44183908]
[1625494712181,0.24057544,33656.0,33649.0,0.00384779]
[1625494712280,0.24057544,33656.0,33649.0,0.07373365]
[1625494712382,0.24057544,33656.0,33655.0,1.44041351]
[1625494712482,0.24057544,33656.0,33655.0,1.49941351]
[1625494712581,0.24057544,33656.0,33655.0,1.55841351]
[1625494712681,0.24057544,33656.0,33655.0,1.49941351]
[1625494712783,0.24057544,33656.0,33655.0,0.32577787]
[1625494713032,0.24057544,33656.0,33655.0,0.56635331]
[1625494714235,0.24057544,33656.0,33655.0,0.30342331]
[1625494715695,0.24057544,33656.0,33655.0,0.29957544]
[1625494716048,0.29957544,33656.0,33655.0,0.29957544]
[1625494716147,0.24057544,33656.0,33655.0,0.29957544]
[1625494717050,0.24057544,33656.0,33655.0,0.3034236]
[1625494718000,0.59765544,33656.0,33655.0,0.3034236]
[1625494719011,0.59765544,33656.0,33655.0,0.29957544]
[1625494719653,0.59765544,33656.0,33655.0,0.24057544]
[1625494719914,0.53865544,33656.0,33655.0,0.24057544]
[1625494720109,0.24057544,33656.0,33655.0,0.24442385]
[1625494720306,0.24057544,33656.0,33655.0,0.30342385]
[1625494720416,0.24057544,33656.0,33655.0,0.24442385]
[1625494720705,0.24057544,33656.0,33655.0,0.30342385]
[1625494721054,0.24057544,33656.0,33655.0,0.69847385]
[1625494721457,0.24057544,33656.0,33655.0,1.81833927]
[1625494721957,0.24057544,33656.0,33655.0,0.63947385]
[1625494722106,0.24057544,33656.0,33655.0,0.69847385]
[1625494722759,0.24057544,33656.0,33655.0,1.87727628]
[1625494723306,0.24057544,33656.0,33655.0,1.81827628]
[1625494723610,0.24057544,33656.0,33655.0,0.63947385]
[1625494724156,0.24057544,33656.0,33655.0,0.69847385]
[1625494724257,0.24057544,33656.0,33655.0,0.63947385]
[1625494724658,0.24057544,33656.0,33655.0,0.30342385]
[1625494725089,0.24057544,33656.0,33655.0,0.24442385]
[1625494725360,0.29957544,33656.0,33655.0,0.24442385]
[1625494725459,0.24057544,33656.0,33655.0,0.24442385]
[1625494725659,0.24057544,33656.0,33655.0,0.24057544]
[1625494725961,0.24057544,33656.0,33655.0,0.24442373]
[1625494730368,0.29957544,33656.0,33655.0,0.24442373]
[1625494730468,0.24057544,33656.0,33655.0,0.24442373]
[1625494730569,0.45454544,33656.0,33655.0,0.24442373]
[1625494734832,0.24057544,33656.0,33655.0,0.24442373]
[1625494737737,0.24057544,33656.0,33655.0,1.4271886]
[1625494740749,0.24057544,33656.0,33655.0,1.4861886]
[1625494740849,0.24057544,33656.0,33655.0,2.8376251]
[1625494742851,0.24057544,33656.0,33655.0,1.4861886]
[1625494743303,0.24057544,33656.0,33655.0,2.83812359]
[1625494744010,0.24057544,33656.0,33655.0,2.89712359]
[1625494744860,0.24057544,33656.0,33655.0,2.90805434]
[1625494745209,0.24057544,33656.0,33655.0,4.42734104]
[1625494745560,0.20554742,33656.0,33655.0,4.42734104]
[1625494748170,0.26267228,33665.0,33655.0,4.42734104]
[1625494748268,0.26267228,33665.0,33655.0,4.43613135]
[1625494748569,0.26269615,33667.0,33664.0,1.1812469]
[1625494748669,0.26269615,33667.0,33664.0,1.5269269]
[1625494748768,0.26269615,33667.0,33664.0,1.5859269]
[1625494748972,0.26269615,33667.0,33665.0,0.00384371]
[1625494749075,0.26267773,33669.0,33665.0,1.24366294]
[1625494749172,0.26267773,33669.0,33665.0,1.30266294]
[1625494749273,0.50325317,33669.0,33668.0,0.48115088]
[1625494749372,0.50325317,33669.0,33668.0,0.54015088]
[1625494749676,0.56225317,33669.0,33668.0,0.54015088]
[1625494749773,0.56225317,33669.0,33668.0,0.48499475]
[1625494749973,0.50325317,33669.0,33668.0,0.48499475]
[1625494750124,0.32819298,33669.0,33668.0,0.48499475]
[1625494751529,0.32819298,33669.0,33668.0,0.54399475]
[1625494751631,0.24057544,33669.0,33668.0,0.54399475]
[1625494753835,0.50314554,33669.0,33668.0,0.54399475]
[1625494753935,0.56214554,33669.0,33668.0,0.54399475]
[1625494754087,0.50314554,33669.0,33668.0,0.54399475]
[1625494754487,0.4155639,33669.0,33668.0,0.54399475]
[1625494754942,0.4155639,33669.0,33668.0,4.56629475]
[1625494755039,0.5031458,33669.0,33668.0,4.56629475]
[1625494755141,0.5031458,33669.0,33668.0,4.50729475]
[1625494755240,0.5621458,33669.0,33668.0,4.50729475]
[1625494755646,0.4745639,33669.0,33668.0,4.50729475]
[1625494756994,0.29957544,33669.0,33668.0,4.50729475]
[1625494759050,0.24057544,33669.0,33668.0,4.50729475]
[1625494759954,0.24057544,33669.0,33668.0,0.48499475]
[1625494760606,0.94084006,33669.0,33668.0,0.48499475]
[1625494761607,0.99984006,33669.0,33668.0,0.48499475]
[1625494762158,2.05072756,33669.0,33668.0,0.48499475]
[1625494762610,1.99172756,33669.0,33668.0,0.48499475]
[1625494764265,1.99172756,33669.0,33668.0,0.54399475]
[1625494764464,2.05072756,33669.0,33668.0,0.54399475]
[1625494765519,1.99172756,33669.0,33668.0,0.54399475]
[1625494767269,2.05072756,33669.0,33668.0,0.54399475]
[1625494768272,1.99172756,33669.0,33668.0,0.48499475]
[1625494768372,1.99172756,33669.0,33668.0,0.54399475]
[1625494771279,2.05072756,33669.0,33668.0,0.54399475]
[1625494775490,0.99984006,33669.0,33668.0,0.54399475]
[1625494776643,2.0506395,33669.0,33668.0,0.54399475]
[1625494778146,2.0667903,33669.0,33668.0,0.54399475]
[1625494778497,0.31572624,33669.0,33668.0,0.54399475]
[1625494778847,2.06721285,33669.0,33668.0,0.54399475]
[1625494780054,2.59273273,33669.0,33668.0,0.54399475]
[1625494785472,2.06721285,33669.0,33668.0,0.54399475]
[1625494785589,0.31572624,33669.0,33668.0,0.54399475]
[1625494786169,2.59312525,33669.0,33668.0,0.54399475]
[1625494787771,2.53412525,33669.0,33668.0,0.54399475]
[1625494788222,2.59312525,33669.0,33668.0,0.54399475]
[1625494788371,2.53412525,33669.0,33668.0,0.54399475]
[1625494789127,2.53412525,33669.0,33668.0,1.74391268]
[1625494789525,2.53412525,33669.0,33668.0,0.54399475]
[1625494789829,2.53412525,33669.0,33668.0,1.74397931]
[1625494790178,2.59312525,33669.0,33668.0,1.74397931]
[1625494790780,2.59312525,33669.0,33668.0,0.54399475]
[1625494791687,2.59312525,33669.0,33668.0,1.74464914]
[1625494793741,3.82060693,33669.0,33668.0,1.74464914]
[1625494794942,2.59312525,33669.0,33668.0,1.74464914]
[1625494795090,2.59312525,33669.0,33668.0,1.68564914]
[1625494795841,3.82103682,33669.0,33668.0,1.68564914]
[1625494796494,3.82103682,33669.0,33668.0,1.74464914]
[1625494797698,3.82103682,33669.0,33668.0,3.11875506]
[1625494797896,3.82103682,33669.0,33668.0,3.05975506]
[1625494799014,3.76203682,33669.0,33668.0,3.05975506]
[1625494799100,3.76203682,33669.0,33668.0,1.68564914]
[1625494799804,3.82103682,33669.0,33668.0,1.68564914]
[1625494800454,5.22562401,33669.0,33668.0,3.06114038]
[1625494801056,5.22562401,33669.0,33668.0,3.12014038]
[1625494801508,3.82103682,33669.0,33668.0,3.12014038]
[1625494801710,3.76203682,33669.0,33668.0,3.12014038]
[1625494802010,3.82103682,33669.0,33668.0,3.12014038]
[1625494802109,3.76203682,33669.0,33668.0,3.12014038]
[1625494802213,3.82103682,33669.0,33668.0,3.12014038]
[1625494802762,3.82103682,33669.0,33668.0,1.74464914]
[1625494802763,5.22564811,33669.0,33668.0,1.74464914]
[1625494804869,5.22564811,33669.0,33668.0,3.11705216]
[1625494807975,0.31572624,33669.0,33668.0,0.54399475]
[1625494808475,5.2368116,33669.0,33668.0,3.05647488]
[1625494809026,5.1778116,33669.0,33668.0,3.05647488]
[1625494809126,5.1778116,33669.0,33668.0,3.11547488]
[1625494809426,5.1616608,33669.0,33668.0,3.11547488]
[1625494809578,4.92108536,33669.0,33668.0,2.634324]
[1625494809778,4.92108536,33669.0,33668.0,2.64539355]
[1625494809979,3.51513628,33669.0,33668.0,2.64539355]
[1625494810078,3.51513628,33669.0,33668.0,3.36711987]
[1625494810280,3.51513628,33669.0,33668.0,3.42611987]
[1625494810730,3.51513628,33669.0,33668.0,3.43490783]
[1625494811031,1.23040313,33669.0,33668.0,4.96516508]
[1625494811582,0.52734073,33669.0,33668.0,6.67275063]
[1625494811684,0.26386419,33671.0,33668.0,6.67275063]
[1625494811784,0.26386419,33671.0,33669.0,0.01102417]
[1625494811884,0.26386419,33671.0,33669.0,0.12902417]
[1625494811983,0.26386419,33671.0,33670.0,0.01102402]
[1625494812083,0.61470122,33673.0,33670.0,4.39656866]
[1625494812182,0.61470122,33673.0,33671.0,0.01102928]
[1625494812383,0.70212374,33673.0,33672.0,2.55965721]
[1625494812482,0.70212374,33673.0,33672.0,2.61865721]
[1625494812582,0.70212374,33673.0,33672.0,2.63353222]
[1625494812785,2.28187876,33673.0,33672.0,2.63353222]
[1625494812991,2.28187876,33673.0,33672.0,2.87020222]
[1625494813087,1.22876724,33673.0,33672.0,4.40586652]
[1625494813438,1.22876724,33673.0,33672.0,2.87020222]
[1625494814135,1.22876724,33673.0,33672.0,3.11077766]
[1625494814336,0.5266435,33673.0,33672.0,3.11077766]
[1625494814438,0.5266435,33673.0,33672.0,3.16977766]
[1625494814687,0.52659243,33673.0,33672.0,4.64622935]
[1625494814987,0.61447481,33673.0,33672.0,4.64622935]
[1625494815438,0.52659243,33673.0,33672.0,4.64622935]
[1625494815891,0.26343837,33673.0,33672.0,4.64622935]
[1625494817145,0.26343837,33673.0,33672.0,4.40955935]
[1625494817294,3.508077,33673.0,33672.0,1.50895715]
[1625494817392,3.567077,33673.0,33672.0,1.49792291]
[1625494817491,3.789747,33673.0,33672.0,1.49792291]
[1625494817591,3.848747,33673.0,33672.0,1.49792291]
[1625494817693,3.848747,33673.0,33672.0,0.30341621]
[1625494817694,5.25189988,33673.0,33672.0,0.30341621]
[1625494818054,5.31089988,33673.0,33670.0,1.19694973]
[1625494818167,5.81089988,33673.0,33670.0,1.19694973]
[1625494818257,7.21260961,33671.0,33669.0,1.36794255]
[1625494818302,7.21260961,33671.0,33664.0,2.1992856]
[1625494818495,7.28777878,33671.0,33664.0,2.1992856]
[1625494818646,7.34677878,33671.0,33664.0,2.1992856]
[1625494818745,4.91252036,33665.0,33664.0,0.9999]
[1625494818844,5.27987036,33665.0,33664.0,0.9999]
[1625494819047,5.33887036,33665.0,33664.0,0.9999]
[1625494820149,5.82002124,33665.0,33664.0,0.9999]
[1625494827518,5.29359833,33665.0,33664.0,0.9999]
[1625494828019,5.81935435,33665.0,33664.0,0.9999]
[1625494832329,0.90750088,33665.0,33664.0,0.9999]
[1625494832930,5.8120958,33665.0,33664.0,0.9999]
[1625494836517,4.41085802,33665.0,33664.0,0.9999]
[1625494837896,5.8114727,33665.0,33664.0,0.9999]
[1625494838698,4.41085802,33665.0,33664.0,0.9999]
[1625494839094,5.81133113,33665.0,33664.0,0.9999]
[1625494845507,5.81133113,33665.0,33664.0,1.00375383]
[1625494846309,5.81133113,33665.0,33664.0,0.9999]
[1625494846759,5.82744158,33665.0,33664.0,1.00375406]
[1625494852126,0.92361133,33665.0,33664.0,1.00375406]
[1625494852677,5.8226893,33665.0,33664.0,1.00375406]
[1625494853854,6.3226893,33665.0,33664.0,1.00375406]
[1625494854045,6.2636893,33665.0,33664.0,0.94475406]
[1625494854358,6.2046893,33665.0,33664.0,0.75615406]
[1625494854438,7.83847719,33665.0,33664.0,0.60145406]
[1625494854537,7.77947719,33665.0,33664.0,0.54245406]
[1625494854732,7.83847719,33665.0,33664.0,0.48185406]
[1625494854831,7.83847719,33665.0,33664.0,0.00385406]
[1625494854931,9.58826551,33665.0,33664.0,0.00385406]
[1625494855031,0.057,33664.0,33648.0,1.21004033]
[1625494855130,3.6449,33663.0,33648.0,1.21004033]
[1625494855230,0.557,33662.0,33648.0,1.21004033]
[1625494855331,0.616,33662.0,33648.0,1.21004033]
[1625494855431,0.616,33662.0,33649.0,1.20993246]
[1625494855432,0.26279543,33650.0,33649.0,1.20993246]
[1625494855530,0.58802543,33650.0,33649.0,1.21378182]
[1625494855932,0.4128868,33650.0,33649.0,0.00384936]
[1625494856333,1.13461312,33650.0,33649.0,0.00384936]
[1625494856534,1.57180556,33650.0,33649.0,0.00384936]
[1625494856835,1.57180556,33650.0,33647.0,0.00384973]
[1625494857337,1.65960164,33650.0,33647.0,1.21398195]
[1625494857685,1.65960164,33650.0,33648.0,0.00384963]
[1625494857785,1.30964352,33650.0,33648.0,0.00384963]
[1625494858334,1.37515246,33650.0,33648.0,0.00384963]
[1625494859737,1.37515246,33650.0,33647.0,0.00384967]
[1625494859837,1.28753176,33650.0,33647.0,1.21334237]
[1625494860347,1.28753176,33650.0,33648.0,0.00384963]
[1625494860689,1.63724487,33650.0,33648.0,0.00384963]
[1625494860788,1.89974816,33650.0,33648.0,0.00384963]
[1625494860988,1.55003505,33650.0,33648.0,0.00384963]
[1625494861091,1.55003505,33650.0,33647.0,0.00384963]
[1625494861291,1.37509111,33650.0,33647.0,0.00384963]
[1625494861390,1.37509111,33650.0,33649.0,0.00384959]
[1625494861993,1.37509111,33650.0,33647.0,0.00385017]
[1625494862093,1.28753176,33650.0,33647.0,0.09385017]
[1625494862194,1.28753176,33650.0,33647.0,0.00385017]
[1625494869466,1.28753176,33650.0,33647.0,0.06285017]
[1625494869723,1.28753176,33650.0,33648.0,0.00385011]
[1625494869819,1.28753176,33650.0,33648.0,0.06285011]
[1625494869920,1.28753176,33650.0,33648.0,1.27240065]
[1625494870220,1.28753176,33650.0,33648.0,0.06285011]
[1625494870320,1.28753176,33650.0,33649.0,0.00385019]
[1625494870825,1.28753176,33650.0,33648.0,1.21338138]
[1625494871019,1.28753176,33650.0,33648.0,1.27238138]
[1625494871123,1.28753176,33650.0,33649.0,0.00385008]
[1625494871776,1.28753176,33650.0,33649.0,1.21426444]
[1625494872477,1.28753176,33650.0,33649.0,1.27326444]
[1625494872927,1.28753176,33650.0,33649.0,1.21426444]
[1625494873128,1.28753176,33650.0,33649.0,1.27326444]
[1625494874182,1.28753176,33650.0,33649.0,2.65746001]
[1625494874784,1.28753176,33650.0,33649.0,1.27326444]
[1625494875736,1.28753176,33650.0,33649.0,2.65948553]
[1625494878941,1.28753176,33650.0,33649.0,2.60048553]
[1625494879394,1.55063081,33650.0,33649.0,2.60048553]
[1625494879594,1.55063081,33650.0,33649.0,2.65948553]
[1625494880301,1.28753176,33650.0,33649.0,2.65948553]
[1625494881250,1.28753176,33650.0,33649.0,2.67069474]
[1625494881352,0.96230176,33650.0,33649.0,2.67069474]
[1625494881650,0.96230176,33650.0,33649.0,2.72969474]
[1625494882302,0.96230176,33650.0,33649.0,4.28996577]
[1625494884460,0.96230176,33650.0,33649.0,4.53054121]
[1625494894543,0.96230176,33650.0,33649.0,2.97027018]
[1625494895893,1.05011878,33650.0,33649.0,2.97027018]
[1625494896294,1.05011878,33650.0,33649.0,2.95906097]
[1625494896543,1.05011878,33650.0,33649.0,2.97026965]
[1625494897145,1.05011878,33650.0,33649.0,2.95906097]
[1625494897246,1.48857035,33650.0,33649.0,2.95906097]
[1625494897546,2.18986823,33650.0,33649.0,2.95906097]
[1625494901852,2.18986823,33650.0,33649.0,3.20266423]
[1625494902255,1.48874085,33650.0,33649.0,3.20266423]
[1625494902854,1.57661163,33650.0,33649.0,4.76340415]
[1625494903303,1.22571069,33650.0,33649.0,4.76340415]
[1625494904355,1.05017254,33650.0,33649.0,4.76340415]
[1625494904908,0.8095971,33650.0,33649.0,4.76340415]
[1625494905112,1.22810618,33652.0,33649.0,4.76340415]
[1625494905222,0.08788755,33651.0,33649.0,4.76340415]
[1625494905310,0.08788755,33651.0,33650.0,0.01120607]
[1625494905409,0.08788755,33651.0,33650.0,0.07405318]
[1625494905509,0.61440929,33655.0,33650.0,4.22977866]
[1625494905710,0.61440929,33655.0,33651.0,0.01119433]
[1625494905910,0.61438147,33656.0,33654.0,4.15449656]
[1625494906109,0.61438147,33656.0,33655.0,0.01119135]
[1625494906211,0.61438147,33656.0,33655.0,0.0150383]
[1625494906311,0.61438147,33656.0,33655.0,0.1330383]
[1625494906410,0.61437084,33657.0,33655.0,4.28675677]
[1625494906559,0.61437084,33657.0,33656.0,0.72172632]
[1625494906660,0.61437084,33657.0,33656.0,6.27881632]
[1625494906759,0.61437084,33657.0,33656.0,6.40800075]
[1625494906860,0.61446218,33658.0,33656.0,10.56344363]
[1625494907112,0.61446218,33658.0,33657.0,0.0038468]
[1625494907211,0.61446218,33658.0,33657.0,0.0628468]
[1625494907310,0.61446218,33658.0,33657.0,4.27348384]
[1625494907762,0.61446218,33658.0,33657.0,4.28466242]
[1625494907861,0.61424035,33659.0,33657.0,4.28466242]
[1625494908063,0.61424035,33659.0,33658.0,0.01118018]
[1625494908163,0.61424035,33659.0,33658.0,0.07018018]
[1625494908265,0.61424035,33659.0,33658.0,0.13302692]
[1625494908415,0.52639153,33659.0,33658.0,2.7270312]
[1625494908614,0.52639153,33659.0,33658.0,2.96760664]
[1625494909066,0.03478765,43359.0,33658.0,0.37360236]
[1625494909165,2.45485725,33685.0,33658.0,0.37360236]
[1625494909266,2.45485725,33685.0,33658.0,0.36242218]
[1625494909516,0.01613666,33667.0,33659.0,0.00384663]
[1625494909620,1.22767791,33663.0,33662.0,1.21053549]
[1625494909717,1.22767791,33663.0,33662.0,1.26953549]
[1625494909816,1.22767791,33663.0,33662.0,1.27338202]
[1625494909916,3.50784241,33663.0,33662.0,1.33238202]
[1625494910566,3.50784241,33663.0,33662.0,1.8135329]
[1625494911719,2.2801645,33663.0,33662.0,1.8135329]
[1625494913223,2.2801645,33663.0,33662.0,1.7545329]
[1625494913424,2.2801645,33663.0,33662.0,1.8135329]
[1625494913524,2.2801645,33663.0,33662.0,1.7545329]
[1625494913640,2.2801645,33663.0,33662.0,1.8135329]
[1625494913975,2.2801645,33663.0,33662.0,1.7545329]
[1625494914074,2.2801645,33663.0,33662.0,1.8135329]
[1625494914225,2.2801645,33663.0,33662.0,1.7545329]
[1625494914577,2.2801645,33663.0,33662.0,1.8135329]
[1625494915026,2.2801645,33663.0,33662.0,1.7545329]
[1625494915129,3.50708646,33663.0,33662.0,0.54399741]
[1625494915426,2.2801645,33663.0,33662.0,0.54399741]
[1625494915927,2.2801645,33663.0,33662.0,1.75397508]
[1625494916735,3.50687446,33663.0,33662.0,0.54399741]
[1625494917585,3.50687446,33663.0,33662.0,0.60299741]
[1625494917689,3.50687446,33663.0,33662.0,0.54399741]
[1625494918335,3.50687446,33663.0,33662.0,0.60299741]
[1625494918537,2.2801645,33663.0,33662.0,0.60299741]
[1625494918686,2.2801645,33663.0,33662.0,0.54399741]
[1625494920038,2.2801645,33663.0,33662.0,0.54015088]
[1625494920291,3.50676595,33663.0,33662.0,0.54015088]
[1625494922345,3.50676595,33663.0,33662.0,0.54399723]
[1625494922696,2.2801645,33663.0,33662.0,0.54399723]
[1625494923949,3.5067456,33663.0,33662.0,0.54399723]
[1625494924549,1.2265811,33663.0,33662.0,0.54399723]
[1625494924749,3.50458253,33663.0,33662.0,0.54399723]
[1625494926653,3.50458253,33663.0,33662.0,0.54015088]
[1625494927406,4.90647359,33663.0,33662.0,0.54015088]
[1625494928208,4.90647359,33663.0,33662.0,0.48115088]
[1625494929258,4.90647359,33663.0,33662.0,0.54015088]
[1625494929560,3.50458253,33663.0,33662.0,0.5439974]
[1625494932164,3.50458253,33663.0,33662.0,0.6029974]
[1625494932262,3.50458253,33663.0,33662.0,0.5439974]
[1625494932462,3.50458253,33663.0,33662.0,0.6029974]
[1625494932564,3.50458253,33663.0,33662.0,0.5439974]
[1625494933513,2.27800143,33663.0,33662.0,0.5439974]
[1625494933813,3.50474367,33663.0,33662.0,0.5439974]
[1625494934163,2.27800143,33663.0,33662.0,0.5439974]
[1625494934362,2.29413518,33663.0,33662.0,0.5439974]
[1625494934513,3.52086559,33663.0,33662.0,0.5439974]
[1625494934965,3.52086559,33663.0,33662.0,5.5049974]
[1625494937871,3.52086559,33663.0,33662.0,5.02384652]
[1625494938825,3.52086559,33663.0,33662.0,5.98614828]
[1625494944199,3.52086559,33663.0,33662.0,7.02552422]
[1625494944513,2.29413518,33663.0,33662.0,7.02552422]
[1625494944592,2.29413518,33663.0,33662.0,8.23778029]
[1625494947499,2.27800143,33663.0,33662.0,8.23778029]
[1625494947702,2.27800143,33663.0,33662.0,8.29678029]
[1625494947901,2.27800143,33663.0,33662.0,8.23778029]
[1625494948053,1.22668353,33663.0,33662.0,9.62192605]
[1625494948351,1.22668353,33663.0,33662.0,9.68092605]
[1625494948452,1.22668353,33663.0,33662.0,9.62192605]
[1625494949354,2.2784129,33663.0,33662.0,8.23778029]
[1625494952709,1.57750643,33669.0,33662.0,5.98614828]
[1625494952911,1.57750643,33669.0,33668.0,0.48115088]
[1625494953012,1.57750643,33669.0,33668.0,0.75121088]
[1625494953214,6.48591723,33669.0,33668.0,0.75121088]
[1625494953311,6.50204939,33669.0,33668.0,0.75505939]
[1625494956720,4.92454296,33669.0,33668.0,0.75505939]
[1625494957571,6.50294537,33669.0,33668.0,0.75505939]
[1625494957672,6.56194537,33669.0,33668.0,0.75505939]
[1625494957921,6.50294537,33669.0,33668.0,0.75505939]
[1625494959127,6.56194537,33669.0,33668.0,0.75505939]
[1625494960679,6.56194537,33669.0,33668.0,0.48499939]
[1625494964838,6.89023537,33669.0,33668.0,0.48499939]
[1625494965741,8.64764925,33669.0,33668.0,0.48499939]
[1625494967992,8.63151709,33669.0,33668.0,0.48499939]
[1625494968092,8.6476505,33669.0,33668.0,0.48499939]
[1625494973005,6.89023662,33669.0,33668.0,0.48499939]
[1625494973106,6.56194662,33669.0,33668.0,0.48499939]
[1625494973515,6.50294662,33669.0,33668.0,0.48499939]
[1625494974457,6.56194662,33669.0,33668.0,0.48499939]
[1625494978921,6.56194662,33669.0,33668.0,1.5305964]
[1625494980820,6.62094662,33669.0,33668.0,0.1959964]
[1625494980923,7.12094662,33669.0,33667.0,1.04537749]
[1625494981119,0.48115088,33668.0,33667.0,1.04537749]
[1625494981219,1.32602088,33668.0,33667.0,1.04537749]
[1625494981324,5.78622088,33668.0,33667.0,1.04537749]
[1625494981570,5.80237381,33668.0,33667.0,1.04537749]
[1625494982172,5.80237381,33668.0,33661.0,1.2210414]
[1625494982173,13.00768666,33668.0,33661.0,1.2210414]
[1625494982338,0.0896,33667.0,33661.0,1.2210414]
[1625494982522,0.25893089,33667.0,33662.0,0.00384389]
[1625494982622,1.75680764,33665.0,33662.0,0.00384389]
[1625494982724,0.5,33664.0,33662.0,0.00384389]
[1625494982821,0.5,33664.0,33658.0,1.22169349]
[1625494982925,0.559,33664.0,33658.0,1.22169349]
[1625494983023,0.0892,33663.0,33658.0,1.22169349]
[1625494983126,0.72172632,33659.0,33658.0,1.22169349]
[1625494983227,0.92792632,33659.0,33658.0,1.22169349]
[1625494983324,5.21722632,33659.0,33658.0,1.22169349]
[1625494983462,10.7231675,33659.0,33654.0,2.16967882]
[1625494983675,10.77450769,33659.0,33654.0,2.16967882]
[1625494983874,0.0513449,33658.0,33654.0,2.16967882]
[1625494983978,0.1103449,33658.0,33654.0,2.16967882]
[1625494984075,0.5,33657.0,33654.0,2.16967882]
[1625494984226,0.618,33657.0,33654.0,2.16967882]
[1625494984427,0.05134613,33656.0,33654.0,2.16967882]
[1625494984528,0.05134613,33656.0,33654.0,0.9547]
[1625494984529,6.02609074,33656.0,33654.0,0.9547]
[1625494984627,6.64409074,33656.0,33654.0,0.9547]
[1625494984877,6.64409074,33656.0,33655.0,0.929]
[1625494984978,6.60890335,33656.0,33655.0,0.929]
[1625494985128,6.84947879,33656.0,33655.0,0.929]
[1625494989240,6.83332005,33656.0,33655.0,0.929]
[1625494991095,6.79047945,33656.0,33655.0,0.87]
[1625494991193,6.84947945,33656.0,33655.0,0.84]
[1625494991391,6.83332005,33656.0,33655.0,0.84]
[1625494992694,6.33332005,33656.0,33655.0,0.84]
[1625494992804,6.33332005,33656.0,33655.0,1.10145]
[1625494993096,5.07612491,33656.0,33655.0,1.10145]
[1625494993212,5.33721491,33656.0,33655.0,1.04165]
[1625494993295,5.33721491,33656.0,33655.0,0.722]
[1625494993684,5.33721491,33656.0,33655.0,0.7075]
[1625494993763,4.2752,33641.0,33638.0,0.057]
[1625494993848,4.2752,33641.0,33637.0,0.5719]
[1625494993849,0.057,33640.0,33637.0,0.5719]
[1625494994153,0.175,33640.0,33637.0,0.5319]
[1625494994248,0.5,33639.0,33637.0,0.4596]
[1625494994351,0.057,33638.0,33637.0,0.402]
[1625494994448,0.057,33638.0,33637.0,0.2669]
[1625494994551,0.116,33638.0,33637.0,0.2669]
[1625494994648,0.616,33638.0,33637.0,0.2669]
[1625494995001,1.83798162,33638.0,33637.0,0.2669]
[1625494995199,2.80028338,33638.0,33637.0,0.2669]
[1625494995500,4.19409892,33638.0,33629.0,0.24057544]
[1625494995699,3.69409892,33638.0,33629.0,0.24057544]
[1625494995899,0.26160949,33632.0,33629.0,0.24057544]
[1625494996000,0.057,33631.0,33629.0,0.24057544]
[1625494996551,0.057,33631.0,33629.0,0.29957544]
[1625494996654,0.057,33631.0,33629.0,0.24057544]
[1625494996852,0.14423349,33631.0,33629.0,0.24057544]
[1625494997102,0.14423349,33631.0,33629.0,0.29957544]
[1625494997202,0.48115088,33630.0,33629.0,0.35857544]
[1625494997301,0.53815088,33630.0,33629.0,0.35857544]
[1625494999309,0.53815088,33630.0,33629.0,0.24057544]
[1625494999710,0.53815088,33630.0,33629.0,4.10507544]
[1625494999926,0.53815088,33630.0,33629.0,4.16407544]
[1625495000009,0.53815088,33630.0,33629.0,4.22307544]
[1625495000110,0.48115088,33630.0,33629.0,4.22307544]
[1625495002565,0.48115088,33630.0,33629.0,4.54925544]
[1625495004268,0.48115088,33630.0,33629.0,4.49025544]
[1625495004568,0.48115088,33630.0,33629.0,4.43125544]
[1625495004666,0.48115088,33630.0,33629.0,4.10507544]
[1625495004767,0.48115088,33630.0,33629.0,4.16407544]
[1625495005268,0.48115088,33630.0,33629.0,4.22307544]
[1625495005369,0.48115088,33630.0,33629.0,4.55484544]
[1625495008338,0.24057544,33630.0,33629.0,4.55484544]
[1625495008463,0.48115088,33638.0,33629.0,4.55869343]
[1625495008578,0.48115088,33638.0,33630.0,0.059]
[1625495008664,0.48115088,33638.0,33630.0,0.118]
[1625495008976,0.48115088,33638.0,33631.0,0.00384758]
[1625495009178,0.48115088,33638.0,33631.0,0.12184758]
[1625495009279,0.24057544,33638.0,33637.0,0.48115088]
[1625495009382,0.24057544,33638.0,33637.0,0.84241088]
[1625495009728,0.24057544,33638.0,33637.0,0.84625809]
[1625495010080,0.24057544,33643.0,33637.0,0.84625809]
[1625495010579,0.24057544,33643.0,33638.0,0.00384163]
[1625495010680,0.24057544,33643.0,33638.0,0.12184163]
[1625495010795,0.24057544,33643.0,33642.0,5.2484]
[1625495010988,0.24057544,33643.0,33642.0,5.3664]